bitfinex/quotes_ETHUSD_20241004
["timestamp","ask_amount","ask_price","bid_price","bid_amount"]
[1728075040239,0.09,2434.6,2434.5,35.54349221]
[1728075041452,0.09,2434.6,2434.5,35.54355764]
[1728075041803,0.09,2434.6,2434.5,34.69947563]
[1728075042003,0.09,2434.6,2434.5,35.03903941]
[1728075042331,0.09,2434.6,2434.5,35.54358155]
[1728075044619,0.09,2434.6,2434.5,35.03903941]
[1728075044815,0.09,2434.6,2434.5,35.54364276]
[1728075045019,0.09,2434.6,2434.5,35.54364907]
[1728075046237,0.09,2434.6,2434.5,36.36374907]
[1728075048050,0.09,2434.6,2434.5,36.02418542]
[1728075048255,0.09,2434.6,2434.5,34.2113581]
[1728075048547,0.09,2434.6,2434.5,36.3635575]
[1728075048935,0.09,2434.6,2434.5,34.2113581]
[1728075049840,0.09,2434.6,2434.5,36.36354088]
[1728075050027,0.09,2434.6,2434.5,34.2113581]
[1728075050350,0.09,2434.6,2434.5,36.36353184]
[1728075051052,0.09,2434.6,2434.5,34.2113581]
[1728075051249,0.09,2434.6,2434.5,36.50789801]
[1728075051451,0.09,2434.6,2434.5,36.00329466]
[1728075051753,0.09,2434.6,2434.5,36.16846223]
[1728075051942,0.09,2434.6,2434.5,36.00335103]
[1728075052254,0.09,2434.6,2434.5,34.21142243]
[1728075052562,0.09,2434.6,2434.5,34.55095703]
[1728075052717,0.09,2434.6,2434.5,34.21140763]
[1728075053659,0.09,2434.6,2434.5,33.39130763]
[1728075053954,0.09,2434.6,2434.5,35.54349117]
[1728075054332,0.09,2434.6,2434.5,34.14400763]
[1728075054914,0.09,2434.6,2434.5,36.44061689]
[1728075055118,0.09,2434.6,2434.5,34.14404724]
[1728075055345,0.09,2434.6,2434.5,36.4406565]
[1728075055618,0.09,2434.6,2434.5,36.44066602]
[1728075058455,0.09,2434.6,2434.5,33.39135676]
[1728075058762,0.09,2434.6,2434.5,35.20411854]
[1728075059061,0.09,2434.6,2434.5,35.54366903]
[1728075059743,0.09,2434.6,2434.5,34.14214597]
[1728075059946,0.09,2434.6,2434.5,35.54366903]
[1728075060429,0.09,2434.6,2434.5,35.93741988]
[1728075060849,0.09,2434.6,2434.5,35.93751461]
[1728075061365,0.09,2434.6,2434.5,35.03893558]
[1728075061609,0.09,2434.6,2434.5,35.5979759]
[1728075061900,0.09,2434.6,2434.5,33.78531846]
[1728075062196,0.09,2434.6,2434.5,35.93759081]
[1728075063194,0.09,2434.6,2434.5,35.93845606]
[1728075064705,0.09,2434.6,2434.5,34.70025034]
[1728075064865,0.09,2434.6,2434.5,35.09411823]
[1728075065603,0.09,2434.6,2434.5,35.43381812]
[1728075068102,0.09,2434.6,2434.5,35.43404734]
[1728075068279,0.09,2434.6,2434.5,35.04017945]
[1728075068460,0.09,2434.6,2434.5,35.09435794]
[1728075068662,0.09,2434.6,2434.5,35.43406485]
[1728075069676,0.09,2434.6,2434.5,36.26406485]
[1728075070506,0.09,2434.6,2434.5,34.11069803]
[1728075070891,0.09,2434.6,2434.5,36.40836302]
[1728075071104,0.09,2434.6,2434.5,38.9924032]
[1728075071605,0.09,2434.6,2434.5,36.40836302]
[1728075071811,0.09,2434.6,2434.5,36.06865611]
[1728075072210,0.09,2434.6,2434.5,38.65269629]
[1728075072377,0.09,2434.6,2434.5,36.40832073]
[1728075072572,0.09,2434.6,2434.5,38.99236091]
[1728075072877,0.09,2434.6,2434.5,43.33151394]
[1728075073680,0.09,2434.6,2434.5,40.7480005]
[1728075074190,0.09,2434.6,2434.5,43.33151394]
[1728075074389,0.09,2434.6,2434.5,34.51647744]
[1728075074597,0.09,2434.6,2434.5,35.9180005]
[1728075074976,0.09,2434.6,2434.5,35.52412212]
[1728075075326,0.09,2434.6,2434.5,35.9179527]
[1728075075613,0.09,2434.6,2434.5,35.57827293]
[1728075075819,0.09,2434.6,2434.5,35.9179434]
[1728075078513,0.09,2434.6,2434.5,35.18444235]
[1728075078816,0.09,2434.6,2434.5,35.57832722]
[1728075079021,0.09,2434.6,2434.5,34.17680416]
[1728075079204,0.09,2434.6,2434.5,35.91804262]
[1728075080355,0.09,2434.6,2434.5,36.71934262]
[1728075081648,0.09,2434.6,2434.5,36.379678]
[1728075081946,0.09,2434.6,2434.5,35.98579313]
[1728075082265,0.09,2434.6,2434.5,36.37969288]
[1728075085374,0.09,2434.6,2434.5,35.98579313]
[1728075085663,0.09,2434.6,2434.5,37.02037721]
[1728075085886,0.09,2434.6,2434.5,71.37964668]
[1728075086028,0.09,2434.6,2434.5,74.39462424]
[1728075086573,0.09,2434.6,2434.5,43.39462424]
[1728075086867,0.09,2434.6,2434.5,39.39462424]
[1728075087046,0.09,2434.6,2434.5,36.37964668]
[1728075087252,0.8332,2435.7,2435.6,4.65576]
[1728075087481,0.8332,2435.9,2435.8,4.10532]
[1728075087766,0.8332,2435.9,2435.8,5.50684306]
[1728075088374,0.8332,2435.9,2435.6,28.14627882]
[1728075088375,0.8332,2435.9,2435.6,29.54780188]
[1728075088789,0.06981585,2435.8,2435.6,29.54780188]
[1728075089015,0.06981585,2435.8,2435.6,33.65348188]
[1728075089367,0.06981585,2435.8,2435.6,29.54780188]
[1728075089698,0.8332,2435.9,2435.6,28.68719306]
[1728075089895,0.06969896,2435.7,2435.6,28.68719306]
[1728075090067,0.8332,2435.9,2435.6,28.68719306]
[1728075090409,0.06976462,2435.8,2435.6,28.68719306]
[1728075090704,0.8115,2435.9,2435.6,22.63]
[1728075091003,4.10545,2435.8,2435.6,22.63]
[1728075091205,0.8115,2435.7,2435.5,3.0]
[1728075091363,0.8115,2435.7,2435.4,19.63]
[1728075091364,4.10561,2435.7,2435.4,19.63]
[1728075091586,0.7775,2435.5,2435.4,19.63]
[1728075091966,0.84706761,2435.5,2435.4,19.63]
[1728075096209,0.84706761,2435.5,2435.2,1.40152306]
[1728075096502,0.7775,2435.5,2435.1,23.73659]
[1728075097175,0.8157,2435.5,2435.1,23.73659]
[1728075097772,0.8092,2435.3,2435.1,19.63]
[1728075098172,0.06818027,2435.2,2435.1,23.73659]
[1728075098597,0.8092,2435.3,2435.1,23.73659]
[1728075098973,0.06738461,2435.2,2435.1,23.73659]
[1728075099296,0.8092,2435.3,2435.1,23.73659]
[1728075099497,0.06738461,2435.2,2435.1,23.73659]
[1728075099694,0.8092,2435.3,2435.1,23.73659]
[1728075100006,0.06738461,2435.2,2435.1,23.73659]
[1728075100406,0.8092,2435.3,2435.1,23.73659]
[1728075100793,0.06738461,2435.2,2435.1,23.73659]
[1728075100996,0.8092,2435.3,2435.1,23.73659]
[1728075101221,0.06738461,2435.2,2435.1,23.73659]
[1728075101685,0.8092,2435.3,2435.1,23.73659]
[1728075102085,0.06738461,2435.2,2435.1,19.63]
[1728075102285,0.7906,2435.2,2434.8,20.49060882]
[1728075102487,0.06738346,2435.1,2434.9,4.10693]
[1728075102690,0.06738346,2435.1,2434.9,5.50845306]
[1728075103106,0.7906,2435.2,2434.9,5.50845306]
[1728075103325,0.06731776,2435.0,2434.9,5.50845306]
[1728075103632,0.7906,2435.2,2434.9,5.50845306]
[1728075104140,0.06738346,2435.1,2434.9,5.50845306]
[1728075104329,0.7906,2435.2,2434.9,5.50845306]
[1728075105292,4.89704,2435.2,2434.8,19.63]
[1728075105492,0.8109,2435.1,2434.8,19.63]
[1728075105698,0.8109,2435.1,2434.8,23.73707]
[1728075105913,0.0672377,2435.0,2434.8,23.73707]
[1728075106207,0.7598,2434.9,2434.8,19.63]
[1728075107638,0.7598,2434.9,2434.8,23.73711]
[1728075108835,0.7598,2434.9,2434.8,4.10711]
[1728075109044,0.8065,2435.2,2434.8,4.10711]
[1728075109523,0.06721704,2435.1,2434.9,1.40152306]
[1728075112348,4.91295,2435.2,2434.9,1.40152306]
[1728075112845,0.8065,2435.2,2434.9,1.40152306]
[1728075114922,0.8065,2435.2,2434.8,4.10703]
[1728075116146,0.8065,2435.2,2434.8,3.21638151]
[1728075116307,0.8065,2435.2,2434.9,5.50834306]
[1728075118550,0.06724867,2435.1,2434.9,5.50834306]
[1728075118715,0.06724867,2435.1,2434.9,4.10682]
[1728075118916,0.8065,2435.2,2434.9,4.10682]
[1728075119138,0.06718297,2435.0,2434.9,4.10682]
[1728075119443,0.8065,2435.2,2434.9,7.51570334]
[1728075119847,0.06724867,2435.1,2434.9,7.51570334]
[1728075120214,0.8065,2435.2,2434.9,7.51570334]
[1728075120844,0.06725077,2435.1,2434.9,27.14570334]
[1728075121204,0.8065,2435.2,2434.9,27.14570334]
[1728075121715,0.06725077,2435.1,2435.0,2.80063122]
[1728075121915,0.8065,2435.2,2435.0,2.80063122]
[1728075122117,0.06725077,2435.1,2435.0,2.80063122]
[1728075122340,0.8065,2435.2,2435.0,2.80063122]
[1728075122643,0.06725077,2435.1,2435.0,2.80063122]
[1728075122961,0.8065,2435.2,2435.0,2.80063122]
[1728075123112,0.06673743,2435.1,2435.0,2.80063122]
[1728075123454,0.8065,2435.2,2435.0,2.80063122]
[1728075123852,0.06673743,2435.1,2435.0,2.80063122]
[1728075124229,0.8065,2435.2,2435.0,2.80063122]
[1728075124559,0.06440524,2435.1,2435.0,2.80063122]
[1728075124857,0.8065,2435.2,2435.0,2.80063122]
[1728075125236,0.06438959,2435.1,2434.9,23.73682]
[1728075125637,0.8065,2435.2,2434.9,23.73682]
[1728075126025,0.06211649,2435.1,2434.9,19.63]
[1728075126224,0.8065,2435.2,2434.9,19.63]
[1728075126225,4.91304,2435.2,2434.9,19.63]
[1728075126462,4.1066,2435.1,2434.9,19.63]
[1728075126763,4.1066,2435.1,2434.7,4.96773882]
[1728075126764,4.16871649,2435.1,2434.7,24.59773882]
[1728075127067,4.1066,2435.1,2434.8,0.50533768]
[1728075127250,4.1066,2435.1,2434.7,24.59773882]
[1728075127451,0.06205078,2435.0,2434.8,0.50530425]
[1728075127656,0.8191,2434.9,2434.6,4.96797882]
[1728075127848,0.8191,2434.9,2434.6,0.86060882]
[1728075127849,0.88108507,2434.9,2434.6,0.86060882]
[1728075128162,4.98804507,2434.9,2434.6,0.86060882]
[1728075128348,0.8191,2434.9,2434.5,12.07574882]
[1728075128558,0.06193923,2434.8,2434.6,0.50526262]
[1728075128732,0.8191,2434.9,2434.6,1.40152306]
[1728075128932,0.8191,2434.9,2434.7,4.10728]
[1728075130241,0.8191,2434.9,2434.6,4.40152306]
[1728075130447,0.8191,2434.9,2434.6,8.50894306]
[1728075130646,0.8191,2434.9,2434.7,1.71695522]
[1728075131069,4.10661,2435.1,2434.7,5.82409522]
[1728075131070,0.8075,2435.1,2434.7,5.82409522]
[1728075131569,0.06200235,2435.0,2434.7,5.82409522]
[1728075132391,0.06200235,2435.0,2434.7,9.93129522]
[1728075132558,0.06200235,2435.0,2434.7,29.56130522]
[1728075132732,0.7627,2435.5,2435.0,0.7526]
[1728075133005,4.10622,2435.4,2435.0,25.89089306]
[1728075133269,4.16849819,2435.4,2435.0,25.89089306]
[1728075133567,4.16849819,2435.4,2435.1,2.58908931]
[1728075135776,4.16849819,2435.4,2435.0,19.63]
[1728075137094,4.10622,2435.4,2435.0,19.63]
[1728075137257,0.06230516,2435.3,2435.0,19.63]
[1728075138393,4.92744,2435.2,2435.0,19.63]
[1728075138565,4.98751583,2435.2,2434.9,0.86060882]
[1728075139952,1.79044841,2435.2,2434.9,0.86060882]
[1728075140157,4.92877,2435.0,2434.9,0.86060882]
[1728075140657,0.88191562,2435.0,2434.8,0.86060882]
[1728075140899,4.98870562,2435.0,2434.8,0.86060882]
[1728075141195,4.92879,2435.0,2434.7,0.86060882]
[1728075141496,0.822,2435.0,2434.8,0.86060882]
[1728075141655,0.822,2435.0,2434.7,4.96786882]
[1728075142050,0.822,2435.0,2434.8,0.86060882]
[1728075142257,0.8244,2435.2,2434.9,4.10685]
[1728075142557,0.8244,2435.5,2435.0,5.50827306]
[1728075142757,0.05748625,2435.1,2435.0,25.13827306]
[1728075143003,4.10611,2435.4,2435.0,25.13827306]
[1728075143169,0.05748625,2435.1,2435.0,27.26479356]
[1728075143367,4.10611,2435.4,2435.0,27.26479356]
[1728075143573,0.05748625,2435.1,2435.0,28.12540238]
[1728075143793,4.10611,2435.4,2435.0,28.12540238]
[1728075144367,4.10611,2435.4,2435.0,27.26479356]
[1728075145368,4.10636,2435.3,2435.0,20.49060882]
[1728075145692,0.8159,2435.2,2435.0,19.63]
[1728075146113,0.05757877,2435.1,2435.0,19.63]
[1728075146606,0.8159,2435.2,2435.0,19.63]
[1728075146755,0.05756312,2435.1,2435.0,19.63]
[1728075146959,0.8159,2435.2,2435.0,19.63]
[1728075147190,0.05756312,2435.1,2435.0,19.63]
[1728075147398,0.8159,2435.2,2434.9,0.86060882]
[1728075147599,0.05756312,2435.1,2434.9,0.86060882]
[1728075147782,0.8159,2435.2,2434.9,0.86060882]
[1728075148025,0.05749741,2435.0,2434.9,0.86060882]
[1728075148187,0.8159,2435.2,2434.9,4.38699938]
[1728075148388,0.05749741,2435.0,2434.9,0.86060882]
[1728075148600,0.8159,2435.2,2434.9,0.86060882]
[1728075148921,0.05749741,2435.0,2434.9,0.86060882]
[1728075149059,4.10663,2435.1,2434.9,0.86060882]
[1728075149372,0.83822303,2435.0,2434.8,20.49060882]
[1728075149790,0.83822303,2435.0,2434.8,19.63]
[1728075149968,0.7807,2435.0,2434.8,19.63]
[1728075150486,0.7807,2435.0,2434.8,20.49060882]
[1728075150800,0.7807,2435.0,2434.8,19.63]
[1728075152286,4.88748,2435.0,2434.8,19.63]
[1728075152694,0.05748271,2434.9,2434.8,19.63]
[1728075153267,4.16442271,2434.9,2434.7,0.86060882]
[1728075153467,4.16442271,2434.9,2434.6,0.86060882]
[1728075153697,0.05748271,2434.9,2434.7,1.40152306]
[1728075153909,4.93377,2435.2,2434.8,4.10709]
[1728075154405,0.05752269,2435.1,2434.8,4.10709]
[1728075154605,0.05752269,2435.1,2434.8,4.96769882]
[1728075154781,4.93377,2435.2,2434.8,4.96769882]
[1728075154978,4.93377,2435.2,2434.8,6.53092873]
[1728075155406,4.93377,2435.2,2434.8,1.56322991]
[1728075158697,4.10637,2435.3,2434.9,0.7737]
[1728075158905,4.10637,2435.3,2434.9,6.28216306]
[1728075159170,0.0575495,2435.2,2434.9,11.24963188]
[1728075159372,5.57569191,2435.4,2435.0,1.4103775]
[1728075159581,5.57569191,2435.4,2435.0,5.5171375]
[1728075159582,0.05748379,2435.1,2435.0,5.5171375]
[1728075159780,4.74989191,2435.4,2435.0,5.5171375]
[1728075160010,0.05750368,2435.1,2435.0,5.5171375]
[1728075160312,0.64379191,2435.4,2435.0,5.5171375]
[1728075160611,0.05763509,2435.3,2435.0,5.5171375]
[1728075160809,0.05763509,2435.3,2435.1,1.26598794]
[1728075163780,0.05763509,2435.3,2435.1,5.37258794]
[1728075165716,0.05763509,2435.3,2435.1,1.26598794]
[1728075173489,0.05763509,2435.3,2435.1,5.37257794]
[1728075175618,0.05763509,2435.3,2435.1,1.26598794]
[1728075175842,0.05763509,2435.3,2435.0,21.0403775]
[1728075176643,0.05763509,2435.3,2435.0,25.1470975]
[1728075177541,0.05763509,2435.3,2435.1,4.10658]
[1728075180365,4.16390509,2435.3,2435.0,21.0403775]
[1728075180588,0.7778,2435.2,2435.0,19.63]
[1728075181060,4.88426,2435.2,2435.0,19.63]
[1728075181219,0.05775906,2435.1,2435.0,19.63]
[1728075181622,4.1063,2435.3,2435.0,19.63]
[1728075181836,0.05775906,2435.1,2435.0,19.63]
[1728075182034,4.1063,2435.3,2435.0,19.63]
[1728075182247,0.05775906,2435.1,2435.0,19.63]
[1728075182447,4.1063,2435.3,2435.0,19.63]
[1728075182755,0.05775906,2435.1,2435.0,19.63]
[1728075182930,4.1063,2435.3,2434.9,4.96745882]
[1728075183139,0.05775906,2435.1,2434.9,4.96745882]
[1728075183335,4.1063,2435.3,2434.9,8.18216233]
[1728075183517,4.1063,2435.3,2434.9,4.96745882]
[1728075183715,0.05782476,2435.2,2434.9,4.96745882]
[1728075184160,4.1063,2435.3,2434.9,4.96745882]
[1728075184666,0.05784041,2435.2,2434.9,4.10685]
[1728075185048,4.1063,2435.3,2434.8,25.99907188]
[1728075185251,4.10668,2435.1,2434.8,20.49060882]
[1728075185455,4.92930862,2435.2,2434.8,19.63]
[1728075185635,0.05777494,2435.0,2434.8,23.73707]
[1728075185836,5.51482191,2435.4,2434.9,6.56670788]
[1728075186338,9.62104191,2435.4,2434.9,6.56670788]
[1728075186539,5.51482191,2435.4,2434.9,6.56670788]
[1728075186776,5.51482191,2435.4,2434.9,7.4273167]
[1728075187254,9.62107191,2435.4,2434.9,7.4273167]
[1728075187754,5.51482191,2435.4,2435.0,3.4667723]
[1728075187937,5.51482191,2435.4,2434.8,26.81005188]
[1728075188263,4.10635,2435.3,2434.8,26.81005188]
[1728075188564,4.10635,2435.3,2434.8,30.91706188]
[1728075188862,4.10635,2435.3,2435.0,0.56913158]
[1728075189167,4.10635,2435.3,2434.9,4.10691]
[1728075189344,4.10635,2435.3,2434.9,4.08139533]
[1728075189666,4.10635,2435.3,2434.9,3.22078651]
[1728075191180,4.10635,2435.3,2434.9,7.32770651]
[1728075192731,4.10635,2435.3,2435.0,0.56918367]
[1728075193033,4.10635,2435.3,2434.9,4.10692]
[1728075193242,0.05784557,2435.2,2434.9,4.10692]
[1728075193441,4.10635,2435.3,2434.9,7.18755521]
[1728075193638,0.05777987,2435.1,2434.9,7.18755521]
[1728075193865,4.10635,2435.3,2434.9,7.18755521]
[1728075194069,0.05771417,2435.0,2434.9,4.96752882]
[1728075194268,4.10635,2435.3,2434.9,4.96752882]
[1728075194476,0.05771417,2435.0,2434.9,4.10692]
[1728075194754,4.10635,2435.3,2434.9,4.05692]
[1728075195158,0.05784557,2435.2,2434.9,4.91752882]
[1728075195339,4.10635,2435.3,2434.9,4.91752882]
[1728075195843,0.05784557,2435.2,2434.9,4.91752882]
[1728075196061,4.10635,2435.3,2434.9,4.91752882]
[1728075196442,0.05582919,2435.2,2434.9,4.91752882]
[1728075196643,4.10635,2435.3,2434.9,4.91752882]
[1728075196851,0.05574784,2435.1,2434.9,4.91752882]
[1728075197061,4.10635,2435.3,2434.9,4.91752882]
[1728075197363,5.06846019,2435.3,2434.9,4.91752882]
[1728075197600,0.96211019,2435.3,2434.9,4.91752882]
[1728075197798,0.05581354,2435.2,2434.9,4.05692]
[1728075197969,5.51486191,2435.4,2434.9,4.91752882]
[1728075198152,0.05587923,2435.3,2434.9,4.05692]
[1728075198350,0.05587923,2435.3,2434.9,4.91752882]
[1728075198761,0.05587923,2435.3,2435.0,4.10676]
[1728075200686,0.05587923,2435.3,2434.9,0.86060882]
[1728075200886,0.05587923,2435.3,2434.9,4.96754882]
[1728075201958,0.05587923,2435.3,2435.0,4.10676]
[1728075205483,0.05587923,2435.3,2434.9,9.07439882]
[1728075205687,0.05587923,2435.3,2434.9,4.96745882]
[1728075207400,0.05587923,2435.3,2435.0,4.10673]
[1728075207971,0.05587923,2435.3,2434.9,4.96745882]
[1728075208175,0.05587923,2435.3,2434.9,9.07431882]
[1728075208389,4.16216923,2435.3,2434.9,4.96745882]
[1728075208605,0.05587923,2435.3,2434.9,9.07431882]
[1728075208960,0.05587923,2435.3,2434.9,4.96745882]
[1728075209160,4.71925934,2435.3,2434.9,4.96745882]
[1728075209594,0.61294934,2435.3,2434.9,4.96745882]
[1728075210097,0.61294934,2435.3,2435.0,4.10676]
[1728075210312,0.61294934,2435.3,2434.9,9.07432882]
[1728075210602,0.05587923,2435.3,2434.9,9.07432882]
[1728075211299,0.05587923,2435.3,2434.9,4.96745882]
[1728075212505,0.8193,2435.2,2434.9,4.96745882]
[1728075212829,0.05537242,2435.1,2434.9,4.96745882]
[1728075213145,0.8193,2435.2,2434.9,4.96745882]
[1728075213552,0.05537242,2435.1,2434.9,4.96745882]
[1728075214007,0.8193,2435.2,2434.9,4.96745882]
[1728075214210,0.05530672,2435.0,2434.9,0.86060882]
[1728075214392,5.56952854,2435.2,2434.9,0.86060882]
[1728075214596,0.05334555,2435.0,2434.9,0.86060882]
[1728075214795,9.67607854,2435.2,2434.9,0.86060882]
[1728075215030,0.05336121,2435.0,2434.9,0.86060882]
[1728075215238,5.56952854,2435.2,2434.8,21.30150882]
[1728075215400,0.05336121,2435.0,2434.9,0.86060882]
[1728075215602,5.56952854,2435.2,2434.9,0.86060882]
[1728075215846,5.56952854,2435.2,2434.8,20.4409]
[1728075215847,0.05334555,2435.0,2434.8,21.30150882]
[1728075215997,5.56952854,2435.2,2434.8,21.30150882]
[1728075216331,0.05327985,2434.9,2434.8,25.40861882]
[1728075216497,5.56952854,2435.2,2434.8,24.54801]
[1728075216695,6.53710639,2435.2,2434.9,0.86196211]
[1728075216936,6.53710639,2435.2,2434.8,24.59907211]
[1728075217593,0.7993,2434.9,2434.8,20.49196211]
[1728075217797,0.7993,2434.9,2434.8,19.63]
[1728075218632,0.7993,2434.9,2434.7,0.86196211]
[1728075219446,0.2993,2434.9,2434.7,0.86196211]
[1728075219662,0.2993,2434.9,2434.7,3.86196211]
[1728075220141,0.2993,2434.9,2434.7,0.86196211]
[1728075224651,0.2493,2434.9,2434.7,0.86196211]
[1728075225454,0.05320229,2434.8,2434.7,0.86196211]
[1728075225660,0.2493,2434.9,2434.7,0.86196211]
[1728075226256,0.2493,2434.9,2434.6,4.96940211]
[1728075226436,0.2493,2434.9,2434.6,8.35717972]
[1728075227770,0.2493,2434.9,2434.7,0.86196211]
[1728075228260,0.2493,2434.9,2434.6,8.35717972]
[1728075242547,0.2493,2434.9,2434.6,8.35710972]
[1728075247178,0.2493,2434.9,2434.6,12.46448972]
[1728075247496,0.2493,2434.9,2434.7,3.4786926]
[1728075251270,0.64378854,2435.2,2434.7,3.4786926]
[1728075251475,0.64378854,2435.2,2435.1,1.40152306]
[1728075251706,4.1056,2435.7,2435.1,6.38669168]
[1728075251911,0.64372958,2435.6,2435.4,4.10609]
[1728075252068,0.69640866,2435.6,2435.4,4.90269]
[1728075252475,0.64372958,2435.6,2435.4,0.7966]
[1728075252820,0.04877724,2435.5,2435.4,1.57708743]
[1728075252972,0.04877724,2435.5,2435.4,5.68318743]
[1728075253319,0.64372958,2435.6,2435.4,1.57708743]
[1728075253513,0.048726,2435.5,2435.4,1.57708743]
[1728075253809,0.048726,2435.5,2435.4,0.78048743]
[1728075254172,0.048726,2435.5,2435.3,1.40152306]
[1728075254379,0.048726,2435.5,2435.2,6.42206128]
[1728075254380,0.855326,2435.5,2435.2,5.56009917]
[1728075254681,0.855326,2435.5,2435.2,1.45366917]
[1728075256305,4.961266,2435.5,2435.2,0.63866917]
[1728075258611,4.961266,2435.5,2435.1,3.0]
[1728075258813,4.10618,2435.4,2435.1,3.0]
[1728075259116,0.04836006,2435.3,2435.0,4.10677]
[1728075259617,0.04836006,2435.3,2434.9,8.50845306]
[1728075259777,0.04836006,2435.3,2434.9,10.92753101]
[1728075260315,0.04836006,2435.3,2435.0,0.5675353]
[1728075260614,0.04836006,2435.3,2435.0,3.0]
[1728075262015,0.04836006,2435.3,2435.0,7.10677]
[1728075264216,0.8155,2435.2,2434.9,0.86196211]
[1728075264411,0.8155,2435.1,2434.7,24.59907211]
[1728075264635,0.8155,2435.1,2434.7,27.57887472]
[1728075264636,0.8638518,2435.1,2434.7,27.57887472]
[1728075264812,4.92212,2435.1,2434.7,7.94887472]
[1728075265007,4.92212,2435.1,2434.7,0.86196211]
[1728075265209,0.8155,2435.1,2434.8,5.50852306]
[1728075265433,0.04840401,2435.0,2434.8,5.50852306]
[1728075265601,0.04840401,2435.0,2434.8,1.40152306]
[1728075267913,0.04840401,2435.0,2434.8,5.50859306]
[1728075268292,0.04840401,2435.0,2434.8,8.51936558]
[1728075273312,0.04840401,2435.0,2434.8,5.50859306]
[1728075286886,0.04840401,2435.0,2434.8,4.10707]
[1728075292063,0.04840401,2435.0,2434.9,4.85904]
[1728075292550,4.92725,2435.5,2435.1,4.10656]
[1728075297877,9.03326,2435.5,2435.1,4.10656]
[1728075298087,0.04497138,2435.4,2435.0,5.50827306]
[1728075298293,0.04497138,2435.4,2435.1,3.08592752]
[1728075300467,0.04497138,2435.4,2435.2,1.40152306]
[1728075300677,4.74948958,2435.6,2435.2,2.18822306]
[1728075300899,0.04342551,2435.5,2435.2,2.18822306]
[1728075301468,0.04342551,2435.5,2435.2,6.29456306]
[1728075301667,0.04342551,2435.5,2435.2,9.69247433]
[1728075302285,0.04342551,2435.5,2435.2,4.18461127]
[1728075302486,0.04342551,2435.5,2435.2,3.39791127]
[1728075302877,4.10618,2435.4,2435.0,21.26316211]
[1728075303090,4.10651,2435.2,2435.0,19.63]
[1728075303298,4.8597,2435.1,2435.0,19.63]
[1728075303602,0.79494606,2435.1,2435.0,19.63]
[1728075304407,0.04184606,2435.1,2435.0,27.10129306]
[1728075304712,4.10568,2435.7,2435.3,4.10624]
[1728075305012,0.64371217,2435.9,2435.4,4.879]
[1728075305212,0.04048352,2435.6,2435.5,4.67991918]
[1728075305384,4.9045,2436.0,2435.5,4.67991918]
[1728075305587,4.10526,2435.9,2435.5,4.67991918]
[1728075305917,4.14598722,2435.9,2435.5,4.67991918]
[1728075307216,4.14598722,2435.9,2435.3,0.86109179]
[1728075307217,4.10568,2435.7,2435.3,3.0]
[1728075307512,0.04064846,2435.6,2435.3,3.0]
[1728075308416,4.14641846,2435.6,2435.3,3.0]
[1728075308776,4.14641846,2435.6,2435.2,3.8084]
[1728075308990,4.14641846,2435.6,2435.2,6.77181781]
[1728075309308,0.7723,2435.5,2435.2,6.77181781]
[1728075309688,0.04052132,2435.4,2435.2,6.77181781]
[1728075309885,0.7723,2435.5,2435.2,10.87822781]
[1728075310613,0.7723,2435.5,2435.2,7.10641]
[1728075311513,0.04052132,2435.4,2435.2,7.10641]
[1728075312409,0.04052132,2435.4,2435.2,11.21277]
[1728075312609,0.04052132,2435.4,2435.2,7.10636]
[1728075313485,0.04055809,2435.3,2435.2,7.10636]
[1728075313679,0.04055809,2435.3,2435.0,3.58509179]
[1728075314028,0.7856,2435.3,2435.1,4.10651]
[1728075314182,0.7856,2435.5,2435.1,4.10651]
[1728075314520,0.04078057,2435.4,2435.1,4.10651]
[1728075315027,0.04078057,2435.4,2435.0,5.50828306]
[1728075315388,0.04078057,2435.4,2435.1,4.10656]
[1728075317719,0.04078057,2435.4,2435.2,4.10634]
[1728075317893,0.04078057,2435.4,2435.2,4.10643]
[1728075318586,4.91602,2435.7,2435.2,4.10643]
[1728075318821,4.14651733,2435.6,2435.2,4.10643]
[1728075319899,4.14651733,2435.6,2435.1,4.88816]
[1728075320432,0.04074733,2435.6,2435.5,6.31095306]
[1728075320730,0.04074733,2435.6,2435.5,4.90943]
[1728075320888,4.8951,2436.0,2435.5,4.90943]
[1728075321214,4.8951,2436.0,2435.6,4.10572]
[1728075321215,0.04078872,2435.9,2435.6,4.10572]
[1728075321387,0.04078872,2435.9,2435.7,4.10559]
[1728075321588,4.10477,2436.2,2435.7,8.21108]
[1728075321783,0.04093702,2436.1,2435.7,8.211]
[1728075321989,0.04093702,2436.1,2435.7,4.10549]
[1728075322289,0.04093702,2436.1,2435.8,4.87074]
[1728075322727,4.93706,2436.2,2435.8,0.7654]
[1728075323343,0.04095267,2436.1,2435.8,0.7654]
[1728075323631,0.8322,2436.2,2435.8,0.7654]
[1728075323632,4.93704,2436.2,2435.8,0.7654]
[1728075324222,0.04093702,2436.1,2435.8,0.7654]
[1728075324424,0.04093702,2436.1,2435.8,3.65610464]
[1728075326552,4.14588702,2436.1,2435.8,3.65610464]
[1728075326726,4.14588702,2436.1,2435.8,0.7654]
[1728075328123,0.04093702,2436.1,2435.8,0.7654]
[1728075328328,0.04093702,2436.1,2435.9,1.40152306]
[1728075328544,4.87484,2436.5,2436.0,4.86739]
[1728075328738,0.04170134,2436.4,2436.0,4.86739]
[1728075330236,0.04170134,2436.4,2436.2,4.10463]
[1728075330436,0.04170134,2436.4,2436.1,25.13641306]
[1728075330634,4.1041,2436.6,2436.1,29.24124306]
[1728075330850,0.04148856,2436.3,2436.1,29.24124306]
[1728075331037,4.1041,2436.6,2436.1,28.13670737]
[1728075331237,0.04143856,2436.2,2436.1,25.13635306]
[1728075331438,4.1041,2436.6,2436.1,25.13635306]
[1728075332139,0.04161982,2436.5,2436.1,25.13635306]
[1728075334163,4.10427,2436.5,2436.1,25.13635306]
[1728075334335,0.04155419,2436.4,2436.1,23.73483]
[1728075335029,0.04155419,2436.4,2436.1,19.63]
[1728075336047,0.7992,2436.3,2436.1,19.63]
[1728075336266,4.90379,2436.3,2436.1,19.63]
[1728075336435,0.04133618,2436.2,2436.1,19.63]
[1728075336966,0.04132053,2436.2,2436.1,19.63]